bitfinex/quotes_SOLUSD_20250228
["timestamp","ask_amount","ask_price","bid_price","bid_amount"]
[1740707267865,0.14216157,132.81,132.76,0.063]
[1740707268064,2.11925731,132.81,132.76,0.063]
[1740707268383,0.14216157,132.86,132.76,0.063]
[1740707268695,0.14216157,132.83,132.76,0.063]
[1740707268878,2.11876746,132.82,132.76,0.063]
[1740707269397,0.14216157,132.78,132.76,0.063]
[1740707269584,1.97746529,132.78,132.7,126.8]
[1740707269782,12.28,132.82,132.71,0.79502197]
[1740707269989,1.97731548,132.83,132.73,20.0]
[1740707270186,0.14216157,132.84,132.73,20.0]
[1740707270387,0.14216157,132.82,132.73,20.0]
[1740707270594,20.14216157,132.82,132.71,0.79423174]
[1740707270908,1.97701418,132.81,132.7,135.13011938]
[1740707271208,0.14216157,132.8,132.7,126.8]
[1740707271381,1.97701418,132.81,132.7,134.3356]
[1740707271588,0.14216157,132.8,132.7,135.13005706]
[1740707271783,0.14216157,132.8,132.7,135.13025859]
[1740707271984,0.14216157,132.8,132.7,135.13017178]
[1740707272190,0.14216157,132.8,132.7,126.8]
[1740707272600,20.0,132.78,132.7,126.8]
[1740707273005,2.11950857,132.8,132.7,126.8]
[1740707273206,0.14216157,132.8,132.7,126.8]
[1740707273413,4.66116157,132.77,132.7,126.8]
[1740707273584,6.63871518,132.77,132.7,126.8]
[1740707274482,6.63871518,132.77,132.69,0.063]
[1740707274483,20.0,132.74,132.69,0.063]
[1740707275216,6.49655361,132.77,132.69,0.063]
[1740707275514,4.66056157,132.79,132.69,0.063]
[1740707275704,20.0,132.77,132.69,0.063]
[1740707275901,22.11983102,132.76,132.69,0.063]
[1740707276085,20.0,132.76,132.69,0.063]
[1740707276287,1.97751403,132.75,132.69,0.063]
[1740707276696,20.0,132.76,132.69,0.063]
[1740707276893,4.5184,132.79,132.69,0.063]
[1740707277309,4.66016157,132.8,132.69,0.063]
[1740707277610,20.0,132.79,132.69,0.063]
[1740707277813,0.14216157,132.78,132.69,0.063]
[1740707277991,0.14216157,132.76,132.69,0.063]
[1740707278314,0.14216157,132.77,132.69,0.063]
[1740707279313,4.5194,132.76,132.69,0.063]
[1740707279524,0.14216157,132.75,132.69,0.063]
[1740707280496,1.9779421,132.75,132.69,0.063]
[1740707281088,1.97789856,132.81,132.69,0.063]
[1740707281289,1.97699203,132.83,132.71,0.14216157]
[1740707281507,1.97699203,132.83,132.72,0.79398769]
[1740707281705,12.3,132.85,132.75,0.14216157]
[1740707282015,2.03910241,132.89,132.78,20.0]
[1740707282226,2.03910241,132.89,132.79,0.14216157]
[1740707282400,0.063,132.89,132.8,0.79158202]
[1740707282598,0.063,132.89,132.81,0.79143011]
[1740707282804,2.03839236,132.89,132.78,20.0]
[1740707283011,26.55339236,132.89,132.75,144.6695]
[1740707283206,0.14216157,132.87,132.75,5.9788]
[1740707283490,1.97664775,132.88,132.71,0.79400445]
[1740707283491,20.0,132.83,132.71,0.79400445]
[1740707283697,2.11882409,132.82,132.72,20.0]
[1740707283926,0.14216157,132.8,132.69,17.6432]
[1740707284222,0.14216157,132.78,132.69,0.063]
[1740707284393,0.14216157,132.76,132.69,0.063]
[1740707284593,0.14216157,132.74,132.69,0.063]
[1740707284800,1.92402753,132.78,132.69,0.063]
[1740707285396,20.0,132.74,132.69,0.063]
[1740707285717,21.92430197,132.73,132.69,0.063]
[1740707286128,1.92425423,132.72,132.69,0.063]
[1740707286421,20.0,132.77,132.69,0.063]
[1740707286726,1.92422265,132.76,132.69,0.063]
[1740707286899,0.14216157,132.75,132.69,0.063]
[1740707287098,0.14216157,132.73,132.69,0.063]
[1740707287317,0.14216157,132.71,132.69,0.063]
[1740707287531,20.14216157,132.71,132.69,0.063]
[1740707287702,2.06682566,132.7,132.69,0.063]
[1740707288395,22.06682566,132.7,132.69,0.063]
[1740707288827,2.06682566,132.7,132.69,0.063]
[1740707289004,1.92463043,132.73,132.69,0.063]
[1740707289209,20.0,132.71,132.69,0.063]
[1740707289403,1.92433033,132.73,132.69,0.063]
[1740707289918,12.3,132.74,132.69,0.063]
[1740707290320,2.06603898,132.73,132.69,0.063]
[1740707291129,12.3,132.79,132.69,0.063]
[1740707291333,1.92332071,132.78,132.69,0.063]
[1740707291493,1.92332071,132.78,132.7,20.0]
[1740707292200,1.92332071,132.78,132.69,0.063]
[1740707292426,20.0,132.76,132.69,0.063]
[1740707292630,2.06617382,132.75,132.69,0.063]
[1740707293338,20.0,132.76,132.69,0.063]
[1740707293339,1.92390985,132.76,132.69,0.063]
[1740707293517,1.92376287,132.77,132.69,0.063]
[1740707293930,12.3,132.79,132.69,0.063]
[1740707293931,1.92355167,132.78,132.69,0.063]
[1740707294836,0.14216157,132.77,132.69,0.063]
[1740707295140,20.14216157,132.75,132.69,0.063]
[1740707295348,1.92385082,132.74,132.69,0.063]
[1740707295741,0.14216157,132.73,132.69,0.063]
[1740707296241,0.14216157,132.71,132.69,0.063]
[1740707296415,20.0,132.7,132.69,0.063]
[1740707296618,21.92468177,132.7,132.69,0.063]
[1740707296817,1.92446093,132.71,132.69,0.063]
[1740707297048,0.14216157,132.71,132.69,0.063]
[1740707297346,0.14216157,132.7,132.69,0.063]
[1740707297822,12.3,132.72,132.69,0.063]
[1740707298020,1.92423321,132.76,132.69,0.063]
[1740707298220,14.22370952,132.77,132.69,0.063]
[1740707298946,12.3,132.8,132.69,0.063]
[1740707299140,20.0,132.77,132.69,0.063]
[1740707299446,2.06601552,132.76,132.69,0.063]
[1740707299640,20.0,132.76,132.69,0.063]
[1740707299949,0.14216157,132.71,132.69,0.063]
[1740707300158,2.06682901,132.71,132.69,0.063]
[1740707302551,1.92466744,132.71,132.69,0.063]
[1740707302855,0.14216157,132.7,132.69,0.063]
[1740707303819,4.66356157,132.7,132.69,0.063]
[1740707304067,20.14216157,132.67,132.59,0.063]
[1740707304249,0.14216157,132.65,132.59,0.063]
[1740707304425,0.14216157,132.63,132.59,0.063]
[1740707304750,1.92570238,132.64,132.59,0.063]
[1740707305042,1.92560414,132.64,132.59,0.063]
[1740707305248,66.13110618,132.69,132.59,0.063]
[1740707305249,1.92541133,132.68,132.59,0.063]
[1740707305420,20.0,132.67,132.59,0.063]
[1740707305922,1.92502244,132.69,132.59,20.063]
[1740707306946,0.14216157,132.68,132.59,20.063]
[1740707307122,1.92510578,132.67,132.59,20.063]
[1740707307336,21.92510578,132.67,132.59,0.063]
[1740707307946,0.14216157,132.66,132.59,0.063]
[1740707308167,0.14216157,132.64,132.59,0.063]
[1740707308566,22.06781839,132.64,132.59,0.063]
[1740707309166,20.14216157,132.6,132.59,0.063]
[1740707309467,1.92607032,132.62,132.59,0.063]
[1740707309659,12.3,132.63,132.59,0.063]
[1740707309837,20.14216157,132.6,132.59,0.063]
[1740707310036,22.06797075,132.6,132.59,0.063]
[1740707310247,22.06797075,132.6,132.56,0.063]
[1740707310248,221.87326775,132.59,132.56,0.063]
[1740707310455,0.14216157,132.57,132.56,0.063]
[1740707311452,20.14216157,132.56,132.55,0.03]
[1740707311654,20.14216157,132.56,132.52,0.063]
[1740707311655,0.14216157,132.55,132.52,0.063]
[1740707311887,0.14216157,132.53,132.52,0.063]
[1740707312039,4.66936157,132.53,132.52,0.063]
[1740707313336,4.66936157,132.53,132.52,0.0001]
[1740707314367,6.45450137,132.54,132.52,0.0001]
[1740707314670,1.92760137,132.54,132.52,0.0001]
[1740707315277,4.5262,132.57,132.52,0.0001]
[1740707315574,0.14216157,132.55,132.52,0.0001]
[1740707315777,21.92724342,132.54,132.52,0.0001]
[1740707316274,1.92724342,132.54,132.52,0.0001]
[1740707316475,24.5269,132.54,132.52,0.0001]
[1740707316646,2.06960842,132.53,132.52,0.0001]
[1740707318276,1.927302,132.54,132.52,0.0001]
[1740707318450,1.927302,132.56,132.52,0.0001]
[1740707318650,26.453602,132.56,132.52,0.0001]
[1740707318875,0.14216157,132.55,132.52,0.0001]
[1740707319052,1.92745714,132.54,132.52,0.0001]
[1740707319384,0.14216157,132.53,132.52,0.0001]
[1740707320164,6.59681561,132.53,132.52,0.0001]
[1740707320463,2.06961561,132.53,132.52,0.0001]
[1740707320853,6.59681561,132.53,132.52,0.0001]
[1740707321051,1.92745404,132.53,132.52,0.0001]
[1740707321260,1.92708814,132.55,132.52,0.0001]
[1740707321572,6.45253722,132.58,132.52,0.0001]
[1740707321756,0.14216157,132.57,132.52,0.0001]
[1740707322073,6.45253722,132.58,132.52,0.0001]
[1740707322282,0.14216157,132.54,132.52,0.0001]
[1740707322574,22.06927587,132.54,132.52,0.0001]
[1740707324171,4.5272,132.53,132.52,0.0001]
[1740707324474,0.14216157,132.53,132.52,0.0001]
[1740707325067,0.14216157,132.5,132.42,5.9628]
[1740707325272,2.07018691,132.5,132.42,5.9628]
[1740707326061,2.07018691,132.5,132.41,0.063]
[1740707326250,0.14216157,132.48,132.41,0.063]
[1740707326446,0.14216157,132.46,132.41,0.063]
[1740707327178,1.92825818,132.48,132.41,0.063]
[1740707327385,1.92775388,132.47,132.41,0.063]
[1740707327679,20.14216157,132.47,132.41,0.063]
[1740707327855,0.14216157,132.45,132.41,0.063]
[1740707328055,0.14216157,132.48,132.41,0.063]
[1740707328265,0.14216157,132.46,132.41,0.063]
[1740707330373,4.53,132.45,132.41,0.063]
[1740707330578,6.45839609,132.45,132.41,0.063]
[1740707330977,0.14216157,132.44,132.41,0.063]
[1740707331178,1.92890254,132.43,132.41,0.063]
[1740707331484,0.14216157,132.43,132.41,0.063]
[1740707331660,1.92869042,132.42,132.41,0.063]
[1740707331980,1.92877033,132.44,132.41,0.063]
[1740707332565,6.45927033,132.44,132.41,0.063]
[1740707332766,1.92877033,132.44,132.41,0.063]
[1740707332964,0.14216157,132.43,132.41,0.063]
[1740707335084,1.92893902,132.42,132.41,0.063]
[1740707335285,22.07110059,132.42,132.41,0.063]
[1740707337377,2.07110059,132.42,132.41,0.063]
[1740707337578,33.68359629,132.42,132.41,0.063]
[1740707337887,0.14216157,132.41,132.38,0.03]
[1740707338091,0.14216157,132.39,132.38,0.03]
[1740707339094,1.92988283,132.39,132.38,0.03]
[1740707339277,0.14216157,132.42,132.38,0.03]
[1740707339473,1.92895942,132.41,132.38,0.03]
[1740707339671,1.92912354,132.4,132.38,0.03]
[1740707339971,20.14216157,132.4,132.38,0.03]
[1740707340173,1.92949419,132.39,132.38,0.03]
[1740707340373,2.07165576,132.39,132.38,0.03]
[1740707341566,1.92949419,132.39,132.38,0.03]
[1740707342070,1.9291314,132.42,132.38,0.03]
[1740707342880,14.22870714,132.46,132.38,0.03]
[1740707343087,1.92827903,132.49,132.4,11.9555]
[1740707343594,1.99047449,132.52,132.4,11.9555]
[1740707343887,7.0814957,132.51,132.43,20.0]
[1740707344072,0.063,132.52,132.45,0.14216157]
[1740707344262,0.063,132.55,132.48,12.3587]
[1740707344662,0.20516157,132.55,132.48,12.3587]
[1740707344869,0.14216157,132.5,132.42,12.3587]
[1740707345070,1.927756,132.5,132.42,12.3587]
[1740707345276,1.92755307,132.49,132.42,12.3587]
[1740707345490,6.45475307,132.53,132.42,12.3587]
[1740707345669,20.0,132.5,132.42,12.3587]
[1740707345870,0.14216157,132.48,132.42,12.3587]
[1740707346073,1.9279416,132.47,132.42,12.3587]
[1740707346270,0.14216157,132.46,132.42,12.3587]
[1740707346495,0.14216157,132.47,132.42,12.3587]
[1740707346695,1.92834159,132.46,132.42,12.3587]
[1740707347005,0.14216157,132.47,132.42,12.3587]
[1740707347170,2.07025993,132.47,132.42,12.3587]
[1740707347375,0.14216157,132.48,132.42,12.3587]
[1740707347594,1.92809514,132.49,132.42,12.3587]
[1740707347896,0.14216157,132.48,132.42,12.3587]
[1740707348482,1.92819911,132.47,132.41,6.2073]
[1740707348683,20.0,132.43,132.38,0.03]
[1740707348879,1.92871394,132.42,132.38,0.03]
[1740707351203,1.92867767,132.45,132.38,0.03]
[1740707351388,11.3195,132.52,132.38,0.03]
[1740707351389,1.92829853,132.47,132.38,0.03]
[1740707351585,1.92802903,132.49,132.38,8.58465924]
[1740707351889,12.343,132.5,132.41,20.0]
[1740707352381,12.343,132.5,132.42,0.85736265]
[1740707352382,0.063,132.5,132.42,0.85736265]
[1740707352777,0.063,132.5,132.43,20.0]
[1740707353007,0.063,132.5,132.4,127.3]
[1740707353008,0.14216157,132.49,132.4,127.3]
[1740707353301,22.06999225,132.49,132.4,127.3]
[1740707353500,1.92783068,132.49,132.4,127.3]
[1740707353705,0.063,132.5,132.4,135.71050395]
[1740707353878,21.92741963,132.49,132.4,127.3]
[1740707354077,20.0,132.45,132.38,0.03]
[1740707354284,2.07080359,132.44,132.38,0.03]
[1740707355710,0.14216157,132.42,132.38,0.03]
[1740707356006,20.0,132.4,132.38,0.03]
[1740707356206,2.07115658,132.42,132.38,0.03]
[1740707356396,20.0,132.41,132.38,0.03]
[1740707357323,1.92872478,132.44,132.38,0.03]
[1740707357609,80.33916763,132.48,132.38,0.03]
[1740707357915,0.063,132.5,132.38,1.03037521]
[1740707358403,0.063,132.55,132.38,1.03037521]
[1740707358404,0.063,132.55,132.44,12.6689]
[1740707358704,0.063,132.55,132.45,0.99800555]
[1740707358884,20.063,132.55,132.45,0.99800555]
[1740707359311,0.063,132.55,132.45,0.99800555]
[1740707359687,20.063,132.55,132.45,0.99800555]
[1740707359887,20.063,132.55,132.45,8.54780555]
[1740707360102,20.063,132.55,132.45,0.99800555]
[1740707360310,0.063,132.55,132.45,8.54780555]
[1740707360606,0.063,132.55,132.45,0.99800555]
[1740707360789,20.0,132.54,132.44,13.52457455]
[1740707361187,20.0,132.54,132.44,13.5255233]
[1740707361507,1.98991062,132.55,132.44,12.6689]
[1740707361676,0.14216157,132.54,132.44,12.6689]
[1740707362003,4.66906157,132.54,132.44,12.6689]
[1740707362204,1.92725112,132.53,132.44,12.6689]
[1740707362510,20.0,132.51,132.44,12.6689]
[1740707362679,20.0,132.48,132.38,0.03]
[1740707362878,1.92817633,132.47,132.38,0.03]
[1740707363075,12.28,132.46,132.38,0.03]
[1740707363694,1.92798418,132.45,132.38,0.03]
[1740707363905,6.45798418,132.45,132.38,0.03]
[1740707364199,17.78298418,132.45,132.38,0.03]
[1740707364435,20.0,132.42,132.38,0.03]
[1740707364595,1.92899806,132.41,132.38,0.03]
[1740707365107,1.92894681,132.44,132.38,0.03]
[1740707365405,12.28,132.46,132.38,0.03]
[1740707365593,16.8098,132.46,132.38,0.03]
[1740707365902,12.28,132.46,132.38,0.03]
[1740707366082,16.8096,132.46,132.38,0.03]
[1740707366702,1.98218117,132.45,132.38,0.03]
[1740707366900,20.0,132.43,132.38,0.03]
[1740707367111,1.98250919,132.42,132.38,0.03]
[1740707367984,4.5312,132.42,132.38,0.03]
[1740707368193,1.98261059,132.42,132.38,0.03]
[1740707368397,21.98267125,132.43,132.38,0.03]
[1740707368598,24.5307,132.43,132.38,0.03]
[1740707368799,26.51322516,132.43,132.38,0.03]
[1740707369000,4.5304,132.44,132.38,0.03]
[1740707369310,4.53,132.45,132.38,0.03]
[1740707369995,4.5296,132.46,132.38,0.03]
[1740707370410,1.98225735,132.45,132.38,0.03]
[1740707370628,20.0,132.43,132.38,0.03]
[1740707372111,1.98237512,132.42,132.38,0.03]
[1740707372409,1.9825478,132.42,132.38,0.03]
[1740707372907,20.0,132.4,132.38,0.03]
[1740707373117,1.98298196,132.39,132.38,0.03]
[1740707373712,21.98298196,132.39,132.38,0.03]
[1740707374198,26.51498196,132.39,132.38,0.03]
[1740707374708,37.84508196,132.39,132.36,0.063]
[1740707376321,26.51498196,132.39,132.36,0.063]
[1740707376708,37.84508196,132.39,132.36,0.063]
[1740707376913,0.14216157,132.38,132.36,0.063]
[1740707377818,2.12586717,132.37,132.36,0.063]
[1740707378123,1.9837056,132.37,132.36,0.063]
[1740707378513,6.5164056,132.37,132.36,0.063]
[1740707379021,6.65856717,132.37,132.36,0.063]
[1740707379224,20.0,132.34,132.31,6.1382]
[1740707379447,14.24409108,132.33,132.31,0.063]
[1740707380533,20.14216157,132.31,132.3,0.063]
[1740707380715,20.0,132.27,132.15,6.4366]
[1740707380914,1.98540465,132.26,132.15,6.4366]
[1740707382135,12.26,132.27,132.16,0.8655278]
[1740707382304,12.26,132.27,132.15,14.86796847]
[1740707382499,12.26,132.27,132.16,7.70836157]
[1740707382730,1.98504449,132.26,132.15,6.4366]
[1740707382926,20.0,132.25,132.15,6.4366]
[1740707383103,1.98560067,132.24,132.15,6.4366]
[1740707383323,1.98562051,132.26,132.16,0.14216157]
[1740707383560,6.51988062,132.31,132.18,20.14216157]
[1740707383756,6.51988062,132.31,132.19,20.0]
[1740707383922,13.60137632,132.31,132.19,20.0]
[1740707384128,7.0814957,132.3,132.19,20.0]
[1740707384345,7.0814957,132.3,132.2,0.14216157]
[1740707384557,6.51944388,132.31,132.2,7.70636157]
[1740707384729,6.51944388,132.31,132.19,28.42821374]
[1740707385066,6.51944388,132.31,132.2,0.14216157]
[1740707385351,17.85644388,132.31,132.16,134.946]
[1740707385532,0.14216157,132.3,132.16,127.38]
[1740707385733,1.98522879,132.29,132.16,127.38]
[1740707386150,0.14216157,132.27,132.16,127.38]
[1740707386457,1.98562843,132.26,132.16,127.38]
[1740707386655,4.5366,132.26,132.16,127.38]
[1740707386982,1.98525847,132.25,132.16,127.38]
[1740707387137,6.5214414,132.27,132.16,127.38]
[1740707387343,6.5214414,132.27,132.16,134.9464]
[1740707387533,6.5214414,132.27,132.16,127.38]
[1740707387828,17.8618414,132.27,132.16,127.38]
[1740707388031,12.26,132.26,132.16,127.38]
[1740707388249,1.98549393,132.25,132.16,127.38]
[1740707388651,4.5372,132.24,132.16,127.38]
[1740707388863,1.98582589,132.23,132.16,127.38]
[1740707389360,1.98582589,132.23,132.15,6.4666]
[1740707389762,0.14216157,132.25,132.15,6.4666]
[1740707390062,1.11973356,132.24,132.15,6.4666]
[1740707390747,12.46273356,132.24,132.15,6.4666]
[1740707390949,16.99993356,132.24,132.15,6.4666]
[1740707391146,0.14216157,132.23,132.15,6.4666]
[1740707391452,0.14216157,132.2,132.15,0.03]
[1740707391663,13.37973356,132.19,132.15,0.03]
[1740707392270,12.26,132.19,132.15,0.03]
[1740707393179,16.7989,132.19,132.15,0.03]
[1740707393481,12.26,132.19,132.15,0.03]
[1740707394564,1.11973356,132.23,132.15,0.03]
[1740707394768,4.5372,132.25,132.15,0.03]
[1740707394967,1.11973356,132.24,132.15,0.03]
[1740707395170,12.26,132.27,132.16,19.46546157]
[1740707395346,5.65513356,132.29,132.16,19.46546157]
[1740707395674,5.65513356,132.29,132.18,0.14216157]
[1740707395975,20.0,132.26,132.16,19.3233]
[1740707396164,1.11973356,132.25,132.16,19.3233]
[1740707396358,1.11973356,132.28,132.17,1.73054942]
[1740707396670,1.11973356,132.28,132.16,19.3233]
[1740707396876,20.0,132.26,132.16,19.3233]
[1740707397166,4.5375,132.23,132.16,19.3233]
[1740707397368,1.11973356,132.22,132.16,19.3233]
[1740707399156,1.11973356,132.24,132.16,19.3233]
[1740707399373,5.71963356,132.25,132.16,26.8898]
[1740707399658,1.18273356,132.25,132.16,19.3233]
[1740707399898,0.063,132.25,132.17,0.14216157]
[1740707400381,0.063,132.25,132.17,1.73016381]
[1740707400586,5.65483356,132.3,132.17,13.99016381]
[1740707400756,20.0,132.27,132.16,19.3233]
[1740707400957,1.11973356,132.26,132.16,19.3233]
[1740707401388,24.5362,132.27,132.17,0.14216157]
[1740707401564,4.5359,132.28,132.17,0.14216157]
[1740707401769,1.11973356,132.31,132.2,0.14216157]
[1740707401997,1.11973356,132.31,132.16,26.8897]
[1740707402184,1.11973356,132.31,132.17,1.73027894]
[1740707402487,20.0,132.29,132.16,19.3233]
[1740707402653,0.14216157,132.26,132.16,19.3233]
[1740707402867,0.14216157,132.24,132.16,6.3818]
[1740707403157,20.0,132.16,132.15,0.03]
[1740707403462,21.11973356,132.16,132.15,0.03]
[1740707403680,12.24,132.18,132.15,0.03]
[1740707403892,1.11973356,132.22,132.15,0.03]
[1740707404079,5.65553356,132.28,132.15,0.03]
[1740707404260,16.99503356,132.28,132.15,0.03]
[1740707404468,1.11973356,132.28,132.16,30.44826157]
[1740707404762,1.11973356,132.32,132.16,31.89403732]
[1740707404963,1.11973356,132.32,132.17,1.73028314]
[1740707405172,1.11973356,132.32,132.19,0.14216157]
[1740707405360,12.24,132.33,132.17,0.14216157]
[1740707405561,20.0,132.3,132.16,30.3061]
[1740707405779,20.0,132.3,132.16,18.0661]
[1740707405780,0.14216157,132.28,132.16,18.0661]
[1740707406099,0.14216157,132.26,132.16,18.0661]
[1740707406298,20.0,132.22,132.16,18.0661]
[1740707406766,1.11973356,132.21,132.16,18.0661]
[1740707407165,1.11973356,132.21,132.15,0.03]
[1740707407365,20.0,132.18,132.15,0.03]
[1740707407670,13.35973356,132.17,132.15,0.03]
[1740707408586,12.24,132.17,132.15,0.03]
[1740707409595,12.24,132.17,132.16,0.03]
[1740707410576,13.35973356,132.17,132.16,0.03]
[1740707410784,17.89933356,132.17,132.16,0.03]
[1740707411479,18.04149513,132.17,132.16,0.03]
[1740707411680,20.0,132.14,132.11,0.063]
[1740707411863,21.11973356,132.13,132.11,0.063]
[1740707413181,0.14216157,132.12,132.11,0.063]
[1740707413485,0.14216157,132.12,132.05,6.1009]
[1740707413486,20.0,132.09,132.05,6.1009]
[1740707413684,1.11973356,132.08,132.05,6.1009]
[1740707413880,20.0,132.06,132.01,12.6747]
[1740707414686,21.11973356,132.08,132.01,12.6747]
[1740707414995,13.35973356,132.09,132.01,12.6747]
[1740707415283,32.24,132.09,132.01,12.6747]
[1740707415736,1.11973356,132.08,132.01,12.6747]
[1740707417785,24.5436,132.06,132.01,12.6747]
[1740707418085,20.0,132.06,132.01,12.6747]
[1740707418494,1.11973356,132.05,132.01,12.6747]
[1740707418782,13.35973356,132.12,132.01,12.6747]
[1740707418966,13.35973356,132.12,132.02,0.17216157]
[1740707419175,1.11973356,132.15,132.04,20.0]
[1740707419686,1.11973356,132.17,132.07,7.71386157]
[1740707420001,1.11973356,132.24,132.13,6.3462]
[1740707420570,20.0,132.2,132.13,6.3462]
[1740707420777,1.11973356,132.19,132.13,6.3462]
[1740707421298,1.11973356,132.22,132.13,6.3462]
[1740707421669,1.11973356,132.24,132.13,7.93484128]
[1740707421869,1.11973356,132.25,132.15,12.6855]
[1740707422068,1.11973356,132.25,132.16,0.14216157]
[1740707422300,1.11973356,132.27,132.17,1.58820267]
[1740707422509,1.11973356,132.29,132.19,6.4101]
[1740707422680,1.18273356,132.31,132.2,0.14216157]
[1740707422876,1.18273356,132.31,132.21,11.9966]
[1740707423179,0.063,132.31,132.22,0.14216157]
[1740707423385,1.11973356,132.37,132.24,0.14216157]
[1740707423604,1.11973356,132.37,132.23,6.4101]
[1740707423808,4.5971,132.33,132.23,6.4101]
[1740707423982,1.18273356,132.33,132.23,6.4101]
[1740707424181,0.063,132.33,132.23,15.55984758]
[1740707424386,0.063,132.33,132.23,6.4101]
[1740707424604,0.063,132.33,132.23,7.9974317]
[1740707424788,0.063,132.33,132.23,6.4101]
[1740707424976,20.0,132.3,132.23,6.4101]
[1740707426203,4.5972,132.33,132.23,6.4101]
[1740707426515,0.063,132.33,132.23,6.4101]
[1740707427093,4.5971,132.33,132.23,6.4101]
[1740707427290,0.063,132.33,132.23,6.4101]
[1740707427594,0.063,132.33,132.23,13.9726]
[1740707427903,10.17339928,132.38,132.29,0.14216157]
[1740707427904,7.0814957,132.38,132.29,0.14216157]
[1740707428084,0.063,132.39,132.32,0.14216157]
[1740707428285,4.5299,132.46,132.32,1.72827965]
[1740707428490,5.64893356,132.48,132.36,0.14216157]
[1740707428691,5.64893356,132.48,132.37,6.4982]
[1740707428996,5.64893356,132.48,132.38,1.72774568]
[1740707428997,1.11973356,132.48,132.38,1.72774568]
[1740707429199,0.063,132.5,132.38,1.72774568]
[1740707429501,1.18273356,132.5,132.38,1.72774568]
[1740707429694,0.063,132.5,132.38,1.72774568]
[1740707429909,0.063,132.5,132.4,0.14216157]
[1740707430087,0.063,132.52,132.45,0.14216157]
[1740707430286,11.80748344,132.53,132.47,0.14216157]
[1740707430709,0.063,132.55,132.48,1.58433307]
[1740707431005,0.063,132.55,132.45,129.04436722]
[1740707431179,5.70933356,132.55,132.45,127.46]
[1740707431611,0.14216157,132.54,132.45,127.46]
[1740707431792,20.0,132.52,132.45,127.46]
[1740707431995,5.64773356,132.51,132.45,127.46]
[1740707432185,20.0,132.48,132.44,6.0573]
[1740707432385,1.11973356,132.47,132.44,6.0573]
[1740707433428,1.11973356,132.5,132.44,6.0573]
[1740707433788,20.0,132.48,132.44,6.0573]
[1740707433983,20.0,132.47,132.44,6.0573]
[1740707434189,1.11973356,132.47,132.42,12.7076]
[1740707434392,1.11973356,132.47,132.39,6.1756]
[1740707435637,4.529,132.48,132.39,6.1756]
[1740707435925,20.0,132.48,132.4,0.14216157]
[1740707436113,24.5291,132.48,132.39,6.1756]
[1740707436296,1.11973356,132.47,132.39,6.1756]
[1740707436498,20.0,132.45,132.39,6.1756]
[1740707436811,1.11973356,132.44,132.39,6.1756]
[1740707436997,1.11973356,132.44,132.37,13.0105]
[1740707437199,67.25083974,132.44,132.28,18.9076]
[1740707437411,66.27326775,132.43,132.28,18.9076]
[1740707437618,20.0,132.4,132.28,18.9076]
[1740707437915,1.11973356,132.39,132.28,18.9076]
[1740707438214,20.0,132.34,132.28,18.9076]
[1740707438411,1.11973356,132.33,132.28,18.9076]
[1740707438611,1.11973356,132.33,132.23,127.36]
[1740707438914,0.14216157,132.32,132.23,127.36]
[1740707439112,20.0,132.28,132.23,127.36]
[1740707439288,1.11973356,132.27,132.23,127.36]
[1740707439694,1.11973356,132.3,132.23,127.36]
[1740707439918,20.0,132.28,132.16,18.7477]
[1740707440108,4.5365,132.26,132.16,18.7477]
[1740707440417,20.0,132.23,132.16,18.7477]
[1740707440604,20.0,132.21,132.16,18.7477]